[Event "CCT Chessable Masters Place D-II 2024"]
[Site "Online"]
[Date "2024.02.01"]
[Round "2"]
[White "kpio91"]
[Black "Micki-taryan"]
[Result "1-0"]
[ECO "D03"]
[WhiteElo "2409"]
[BlackElo "2634"]
[Annotator "NA"]
[PlyCount "121"]
[EventDate "2024.01.12"]
[EventType "k.o."]
[EventCountry "NET"]
[SourceTitle "playchess.com"]
[Source "ChessBase"]
[SourceQuality "1"]
[TimeControl "600+2"]

1. d4 {[%emt 0:00:02]} Nf6 {[%emt 0:00:03]} 2. Bg5 {[%emt 0:00:01]} d5 {[%emt 0:00:04]} 3. Nd2 {[%emt 0:00:04]} Bf5 {[%emt 0:00:10]} 4. Ngf3 {[%emt 0:00:35]} e6 {[%emt 0:00:10]} 5. Nh4 {[%emt 0:00:05]} Bg4 {[%emt 0:00:17]} 6. h3 {[%emt 0:00:06]} Bh5 {[%emt 0:00:01]} 7. g4 {[%emt 0:00:06]} h6 {[%emt 0:00:40]} 8. Be3 {[%emt 0:00:45]} Ne4 {[%emt 0:00:27]} 9. Ndf3 {[%emt 0:01:53]} Be7 {[%emt 0:00:16]} 10. Ng2 {[%emt 0:00:02]} Bg6 {[%emt 0:00:04]} 11. Nf4 {[%emt 0:00:03]} Bh7 {[%emt 0:00:09]} 12. Bg2 {[%emt 0:00:07]} O-O {[%emt 0:00:05]} 13. h4 {[%emt 0:00:52]} Nd7 {[%emt 0:00:19]} 14. g5 {[%emt 0:00:15]} hxg5 {[%emt 0:00:33]} 15. hxg5 {[%emt 0:00:07]} Bf5 {[%emt 0:00:43]} 16. Nh4 {[%emt 0:00:26]} Bxg5 {[%emt 0:00:25]} 17. Nxf5 {[%emt 0:00:04]} exf5 {[%emt 0:00:06]} 18. Nxd5 {[%emt 0:00:48]} Nb6 {[%emt 0:00:24]} 19. Nxb6 {[%emt 0:00:35]} Bxe3 {[%emt 0:00:16]} 20. Bxe4 {[%emt 0:00:09]} axb6 {[%emt 0:00:45]} 21. Bxf5 {[%emt 0:00:06]} Bh6 {[%emt 0:00:05]} 22. Qd3 {[%emt 0:00:19]} Qf6 {[%emt 0:00:46]} 23. e3 {[%emt 0:00:17]} Rfe8 {[%emt 0:00:26]} 24. c3 {[%emt 0:00:35]} c5 {[%emt 0:00:34]} 25. Ke2 {[%emt 0:00:58]} Re7 {[%emt 0:01:36]} 26. Rh3 {[%emt 0:00:10]} b5 {[%emt 0:00:05]} 27. Rf3 {[%emt 0:00:23]} Qb6 {[%emt 0:00:10]} 28. a3 {[%emt 0:00:09]} cxd4 {[%emt 0:00:20]} 29. cxd4 {[%emt 0:00:02]} b4 {[%emt 0:00:00]} 30. a4 {[%emt 0:00:06]} Qc6 {[%emt 0:00:07]} 31. d5 {[%emt 0:00:25]} Qd6 {[%emt 0:00:00]} 32. Rc1 {[%emt 0:00:03]} g6 {[%emt 0:00:03]} 33. Bh3 {[%emt 0:00:14]} Bg7 {[%emt 0:00:01]} 34. b3 {[%emt 0:00:03]} Bc3 {[%emt 0:00:07]} 35. Bg2 {[%emt 0:00:07]} Re5 {[%emt 0:00:04]} 36. Rh3 {[%emt 0:00:02]} Rc8 {[%emt 0:00:06]} 37. Rch1 {[%emt 0:00:01]} Rg5 {[%emt 0:00:04]} 38. Bf3 {[%emt 0:00:04]} Re8 {[%emt 0:00:12]} 39. Qc4 {[%emt 0:00:03]} Rf5 {[%emt 0:00:08]} 40. Qb5 {[%emt 0:00:06]} Re7 {[%emt 0:00:03]} 41. Qd3 {[%emt 0:00:02]} Re8 {[%emt 0:00:06]} 42. Kf1 {[%emt 0:00:01]} Re7 {[%emt 0:00:10]} 43. Be4 {[%emt 0:00:02]} Rfe5 {[%emt 0:00:01]} 44. Rh8+ {[%emt 0:00:02]} Kg7 {[%emt 0:00:00]} 45. R1h7+ {[%emt 0:00:01]} Kf6 {[%emt 0:00:00]} 46. Bf3 {[%emt 0:00:04]} Rf5 {[%emt 0:00:06]} 47. Ke2 {[%emt 0:00:03]} Kg5 {[%emt 0:00:05]} 48. Qc4 {[%emt 0:00:02]} Kf6 {[%emt 0:00:02]} 49. Qh4+ {[%emt 0:00:01]} Rg5 {[%emt 0:00:00]} 50. Rf8 {[%emt 0:00:02]} Qe5 {[%emt 0:00:02]} 51. Qc4 {[%emt 0:00:03]} Rf5 {[%emt 0:00:05]} 52. d6 {[%emt 0:00:01]} Qxd6 {[%emt 0:00:04]} 53. Rhxf7+ {[%emt 0:00:01]} Rxf7 {[%emt 0:00:02]} 54. Rxf7+ {[%emt 0:00:01]} Kg5 {[%emt 0:00:06]} 55. Qg4+ {[%emt 0:00:02]} Kh6 {[%emt 0:00:00]} 56. Qh3+ {[%emt 0:00:03]} Rh5 {[%emt 0:00:00]} 57. Bxh5 {[%emt 0:00:01]} gxh5 {[%emt 0:00:05]} 58. Qf5 {[%emt 0:00:03]} Qd2+ {[%emt 0:00:02]} 59. Kf1 {[%emt 0:00:01]} Qd1+ {[%emt 0:00:02]} 60. Kg2 {[%emt 0:00:01]} h4 {[%emt 0:00:03]} 61. Rh7# {[%emt 0:00:02]} 1-0